[Event "Chess Festival Groningen 2023 | A"]
[Site "Groningen, Netherlands"]
[Date "2023.12.27"]
[Round "6.1"]
[White "Romanov, Evgeny"]
[Black "Kazakouski, Valery"]
[Result "1/2-1/2"]
[TimeControl "90min/40moves + 30min + 30sec/move"]
[WhiteElo "2561"]
[BlackElo "2586"]

1. e4 {[%clk 01:30:35]} {[%emt 00:00:23]} e5 {[%clk 01:30:28]} {[%emt
00:00:32]} 2. Nf3 {[%clk 01:30:55]} {[%emt 00:00:10]} Nc6 {[%clk 01:30:51]}
{[%emt 00:00:08]} 3. Bb5 {[%clk 01:31:19]} {[%emt 00:00:07]} Bc5 {[%clk
01:29:13]} {[%emt 00:02:08]} 4. c3 {[%clk 01:25:45]} {[%emt 00:06:04]} Nf6
{[%clk 01:29:17]} {[%emt 00:00:25]} 5. d4 {[%clk 01:24:12]} {[%emt 00:02:03]}
exd4 {[%clk 01:26:48]} {[%emt 00:02:58]} 6. e5 {[%clk 01:22:25]} {[%emt
00:02:17]} Nd5 {[%clk 01:26:13]} {[%emt 00:01:05]} 7. O-O {[%clk 01:16:31]}
{[%emt 00:06:25]} Be7 {[%clk 01:25:36]} {[%emt 00:01:07]} 8. Nxd4 {[%clk
01:13:46]} {[%emt 00:03:14]} O-O {[%clk 01:23:53]} {[%emt 00:02:13]} 9. Nf5
{[%clk 01:12:36]} {[%emt 00:01:39]} d6 {[%clk 01:23:27]} {[%emt 00:00:58]} 10.
Bxc6 {[%clk 00:57:30]} {[%emt 00:15:36]} bxc6 {[%clk 01:22:29]} {[%emt
00:01:27]} 11. Nxe7+ {[%clk 00:57:55]} {[%emt 00:00:05]} Nxe7 {[%clk 01:20:25]}
{[%emt 00:02:34]} 12. exd6 {[%clk 00:57:57]} {[%emt 00:00:29]} cxd6 {[%clk
01:19:40]} {[%emt 00:01:13]} 13. Nd2 {[%clk 00:55:50]} {[%emt 00:02:37]} Bf5
{[%clk 01:15:54]} {[%emt 00:04:15]} 14. Re1 {[%clk 00:55:28]} {[%emt 00:00:54]}
Ng6 {[%clk 01:14:02]} {[%emt 00:02:22]} 15. Nf3 {[%clk 00:51:12]} {[%emt
00:04:49]} c5 {[%clk 01:03:34]} {[%emt 00:10:55]} 16. Bg5 {[%clk 00:49:10]}
{[%emt 00:02:32]} Qb6 {[%clk 00:59:49]} {[%emt 00:04:14]} 17. b3 {[%clk
00:42:55]} {[%emt 00:06:46]} Qc6 {[%clk 00:56:32]} {[%emt 00:03:46]} 18. Nh4
{[%clk 00:39:00]} {[%emt 00:04:26]} Nxh4 {[%clk 00:54:00]} {[%emt 00:03:03]} 19.
Bxh4 {[%clk 00:39:23]} {[%emt 00:00:06]} 1/2-1/2

[Event "Chess Festival Groningen 2023 | A"]
[Site "Groningen, Netherlands"]
[Date "2023.12.27"]
[Round "6.2"]
[White "Aarav, Dengla"]
[Black "Tiviakov, Sergei"]
[Result "1/2-1/2"]
[TimeControl "90min/40moves + 30min + 30sec/move"]
[WhiteFideId "45059756"]
[WhiteElo "2382"]
[BlackElo "2536"]

1. e4 {[%clk 01:30:49]} {[%emt 00:00:10]} e6 {[%clk 01:30:57]} {[%emt
00:00:04]} 2. d4 {[%clk 01:30:50]} {[%emt 00:00:29]} d5 {[%clk 01:31:21]}
{[%emt 00:00:06]} 3. Nd2 {[%clk 01:30:37]} {[%emt 00:00:42]} dxe4 {[%clk
01:31:24]} {[%emt 00:00:27]} 4. Nxe4 {[%clk 01:30:37]} {[%emt 00:00:31]} Nd7
{[%clk 01:31:51]} {[%emt 00:00:03]} 5. Nf3 {[%clk 01:30:48]} {[%emt 00:00:19]}
Ngf6 {[%clk 01:32:14]} {[%emt 00:00:07]} 6. Nxf6+ {[%clk 01:30:25]} {[%emt
00:00:53]} Nxf6 {[%clk 01:32:37]} {[%emt 00:00:07]} 7. g3 {[%clk 01:30:20]}
{[%emt 00:00:34]} Bd7 {[%clk 01:31:11]} {[%emt 00:01:56]} 8. Ne5 {[%clk
01:24:20]} {[%emt 00:06:31]} Bc6 {[%clk 01:31:34]} {[%emt 00:00:07]} 9. Nxc6
{[%clk 01:24:39]} {[%emt 00:00:11]} Qd5 {[%clk 01:32:00]} {[%emt 00:00:04]} 10.
Rg1 {[%clk 01:15:13]} {[%emt 00:09:56]} Qxc6 {[%clk 01:32:23]} {[%emt
00:00:06]} 11. Bg2 {[%clk 01:05:44]} {[%emt 00:10:00]} Qb6 {[%clk 01:27:34]}
{[%emt 00:05:19]} 12. c3 {[%clk 01:05:39]} {[%emt 00:00:35]} c6 {[%clk
01:23:55]} {[%emt 00:04:08]} 13. Qb3 {[%clk 00:53:48]} {[%emt 00:12:22]} Qxb3
{[%clk 01:18:16]} {[%emt 00:06:09]} 14. axb3 {[%clk 00:54:15]} {[%emt
00:00:03]} a6 {[%clk 01:18:39]} {[%emt 00:00:06]} 15. Bg5 {[%clk 00:45:48]}
{[%emt 00:08:56]} Be7 {[%clk 01:17:34]} {[%emt 00:01:37]} 16. Bxf6 {[%clk
00:42:55]} {[%emt 00:03:23]} Bxf6 {[%emt 00:00:25]} 1/2-1/2

[Event "Chess Festival Groningen 2023 | A"]
[Site "Groningen, Netherlands"]
[Date "2023.12.27"]
[Round "6.3"]
[White "Panda, Sambit"]
[Black "Kanov, Nikola"]
[Result "1-0"]
[TimeControl "90min/40moves + 30min + 30sec/move"]
[WhiteFideId "25091794"]
[WhiteElo "2404"]
[BlackElo "2371"]

1. d4 {[%clk 01:30:48]} {[%emt 00:00:11]} Nf6 {[%clk 01:30:49]} {[%emt
00:00:11]} 2. c4 {[%clk 01:31:09]} {[%emt 00:00:09]} e6 {[%clk 01:31:09]}
{[%emt 00:00:11]} 3. Nf3 {[%clk 01:21:31]} {[%emt 00:10:08]} b6 {[%clk
01:31:25]} {[%emt 00:00:14]} 4. a3 {[%clk 01:21:56]} {[%emt 00:00:05]} Bb7
{[%clk 01:31:05]} {[%emt 00:00:50]} 5. Nc3 {[%clk 01:22:19]} {[%emt 00:00:06]}
d5 {[%clk 01:31:07]} {[%emt 00:00:27]} 6. cxd5 {[%clk 01:22:44]} {[%emt
00:00:07]} Nxd5 {[%clk 01:31:29]} {[%emt 00:00:08]} 7. e3 {[%clk 01:23:09]}
{[%emt 00:00:05]} Be7 {[%clk 01:27:37]} {[%emt 00:04:23]} 8. Bb5+ {[%clk
01:23:33]} {[%emt 00:00:06]} c6 {[%clk 01:27:10]} {[%emt 00:00:57]} 9. Bd3
{[%clk 01:23:54]} {[%emt 00:00:07]} Nd7 {[%clk 01:20:41]} {[%emt 00:07:00]} 10.
O-O {[%clk 01:20:18]} {[%emt 00:04:06]} Nxc3 {[%clk 01:17:51]} {[%emt
00:03:21]} 11. bxc3 {[%clk 01:20:37]} {[%emt 00:00:10]} Qc7 {[%clk 01:16:25]}
{[%emt 00:01:56]} 12. Qe2 {[%clk 01:16:59]} {[%emt 00:04:08]} O-O {[%clk
01:14:41]} {[%emt 00:02:14]} 13. e4 {[%clk 01:16:29]} {[%emt 00:01:01]} c5
{[%clk 01:12:27]} {[%emt 00:02:44]} 14. Bd2 {[%clk 01:15:59]} {[%emt 00:00:59]}
Rfd8 {[%clk 01:11:08]} {[%emt 00:01:49]} 15. a4 {[%clk 01:16:23]} {[%emt
00:00:06]} Nf8 {[%clk 01:06:55]} {[%emt 00:04:43]} 16. h4 {[%clk 01:11:41]}
{[%emt 00:05:12]} Bf6 {[%clk 00:57:41]} {[%emt 00:09:48]} 17. Be3 {[%clk
01:06:26]} {[%emt 00:05:45]} Rac8 {[%clk 00:52:28]} {[%emt 00:05:39]} 18. a5
{[%clk 00:50:17]} {[%emt 00:16:40]} c4 {[%clk 00:45:41]} {[%emt 00:07:17]} 19.
Bc2 {[%clk 00:49:01]} {[%emt 00:01:46]} b5 {[%clk 00:45:20]} {[%emt 00:00:50]}
20. a6 {[%clk 00:49:06]} {[%emt 00:00:26]} Bc6 {[%clk 00:44:47]} {[%emt
00:01:03]} 21. e5 {[%clk 00:38:30]} {[%emt 00:11:06]} Be7 {[%clk 00:42:20]}
{[%emt 00:02:57]} 22. Ng5 {[%clk 00:37:00]} {[%emt 00:01:58]} f6 {[%clk
00:37:49]} {[%emt 00:05:03]} 23. exf6 {[%clk 00:30:21]} {[%emt 00:07:10]} Bxf6
{[%clk 00:37:45]} {[%emt 00:14:11]} 24. f4 {[%clk 00:07:28]} {[%emt 00:09:43]}
Qe7 {[%clk 00:34:09]} {[%emt 00:04:06]} 25. Ne4 {[%clk 00:04:12]} {[%emt
00:03:46]} Bxe4 {[%clk 00:32:34]} {[%emt 00:02:05]} 26. Bxe4 {[%clk 00:04:41]}
{[%emt 00:00:02]} b4 {[%clk 00:32:35]} {[%emt 00:00:29]} 27. Bb7 {[%clk
00:03:49]} {[%emt 00:01:21]} Rc7 {[%clk 00:32:44]} {[%emt 00:00:21]} 28. Ra4
{[%clk 00:03:12]} {[%emt 00:01:07]} bxc3 {[%clk 00:30:59]} {[%emt 00:02:16]} 29.
Rxc4 {[%clk 00:03:41]} {[%emt 00:00:01]} Bxh4 {[%clk 00:29:31]} {[%emt
00:01:57]} 30. Rc1 {[%clk 00:03:42]} {[%emt 00:00:30]} Rxc4 {[%clk 00:29:00]}
{[%emt 00:01:00]} 31. Qxc4 {[%clk 00:04:10]} {[%emt 00:00:02]} Bg3 {[%clk
00:29:07]} {[%emt 00:00:24]} 32. f5 {[%clk 00:02:51]} {[%emt 00:01:48]} Kh8
{[%clk 00:25:42]} {[%emt 00:03:55]} 33. Qxc3 {[%clk 00:01:32]} {[%emt
00:01:50]} exf5 {[%clk 00:24:59]} {[%emt 00:01:13]} 34. Bf2 {[%clk 00:00:43]}
{[%emt 00:01:19]} Bxf2+ {[%clk 00:22:27]} {[%emt 00:03:02]} 35. Kxf2 {[%clk
00:01:12]} Ne6 {[%clk 00:22:17]} {[%emt 00:00:41]} 36. Qe3 {[%clk 00:00:36]}
{[%emt 00:01:05]} f4 {[%clk 00:16:50]} {[%emt 00:05:58]} 37. Qe5 {[%clk
00:00:39]} {[%emt 00:00:26]} Qh4+ {[%clk 00:16:33]} {[%emt 00:00:47]} 38. Kg1
{[%clk 00:00:59]} {[%emt 00:00:10]} Nxd4 {[%clk 00:15:58]} {[%emt 00:01:06]} 39.
Rd1 {[%clk 00:00:35]} {[%emt 00:00:54]} f3 {[%clk 00:07:34]} {[%emt 00:08:54]}
40. gxf3 {[%clk 00:01:04]} {[%emt 00:00:01]} h6 {[%clk 00:01:37]} {[%emt
00:06:27]} 41. Kg2 {[%clk 00:30:26]} {[%emt 00:01:08]} Nc2 {[%clk 00:26:06]}
{[%emt 00:06:01]} 42. Rd7 {[%clk 00:15:20]} {[%emt 00:15:35]} Rg8 {[%clk
00:23:42]} {[%emt 00:02:54]} 43. Rd2 {[%clk 00:11:27]} {[%emt 00:04:23]} Ne1+
{[%clk 00:21:32]} {[%emt 00:02:39]} 44. Kg1 {[%clk 00:11:16]} {[%emt 00:00:40]}
Rf8 {[%clk 00:07:32]} {[%emt 00:14:32]} 45. Rd4 {[%clk 00:06:30]} {[%emt
00:05:15]} Qg5+ {[%clk 00:03:21]} {[%emt 00:04:42]} 46. Qxg5 {[%clk 00:06:56]}
{[%emt 00:00:05]} hxg5 {[%clk 00:03:44]} {[%emt 00:00:07]} 47. Kf2 {[%clk
00:07:14]} {[%emt 00:00:10]} Nxf3 {[%clk 00:03:04]} {[%emt 00:01:11]} 48. Bxf3
{[%clk 00:07:39]} {[%emt 00:00:06]} Rf6 {[%clk 00:03:31]} {[%emt 00:00:03]} 49.
Kg3 {[%clk 00:05:24]} {[%emt 00:02:43]} Rxa6 {[%clk 00:03:43]} {[%emt
00:00:20]} 50. Kg4 {[%clk 00:05:35]} {[%emt 00:00:19]} Kg8 {[%clk 00:02:44]}
{[%emt 00:01:29]} 51. Rd7 {[%clk 00:03:44]} {[%emt 00:02:20]} Kf8 {[%clk
00:02:24]} {[%emt 00:00:52]} 52. Kxg5 {[%clk 00:03:05]} {[%emt 00:01:09]} Ra5+
{[%clk 00:02:27]} {[%emt 00:00:28]} 53. Kg6 {[%clk 00:02:16]} {[%emt 00:01:17]}
Ra6+ {[%clk 00:02:55]} {[%emt 00:00:03]} 54. Kg5 {[%clk 00:02:35]} {[%emt
00:00:11]} Ra5+ {[%clk 00:03:24]} {[%emt 00:00:02]} 55. Kg4 {[%clk 00:02:39]}
{[%emt 00:00:23]} Ra4+ {[%clk 00:01:41]} {[%emt 00:02:15]} 56. Kf5 {[%clk
00:02:05]} {[%emt 00:01:02]} Ra5+ {[%clk 00:02:05]} {[%emt 00:00:08]} 57. Ke6
{[%clk 00:02:22]} {[%emt 00:00:08]} Ra6+ {[%clk 00:02:26]} {[%emt 00:00:13]} 58.
Ke5 {[%clk 00:02:47]} {[%emt 00:00:05]} Rf6 {[%clk 00:00:55]} {[%emt 00:02:01]}
59. Be4 {[%clk 00:02:28]} {[%emt 00:00:48]} a6 {[%clk 00:00:45]} {[%emt
00:00:41]} 60. Bf5 {[%clk 00:02:10]} {[%emt 00:00:47]} Rb6 {[%clk 00:00:37]}
{[%emt 00:00:39]} 61. Be6 {[%clk 00:02:16]} {[%emt 00:00:23]} Rb5+ {[%clk
00:00:35]} {[%emt 00:00:34]} 62. Bd5 {[%clk 00:02:38]} {[%emt 00:00:07]} Ra5
{[%clk 00:00:32]} {[%emt 00:00:33]} 63. Ke6 {[%clk 00:01:25]} {[%emt 00:01:43]}
g6 {[%clk 00:00:31]} {[%emt 00:00:30]} 64. Kf6 {[%clk 00:01:35]} {[%emt
00:00:19]} Ke8 {[%clk 00:00:50]} {[%emt 00:00:12]} 65. Rd6 {[%clk 00:02:01]}
{[%emt 00:00:04]} 1-0

[Event "Chess Festival Groningen 2023 | A"]
[Site "Groningen, Netherlands"]
[Date "2023.12.27"]
[Round "6.4"]
[White "Reinderman, Dimitri"]
[Black "De Winter, Arthur"]
[Result "1-0"]
[TimeControl "90min/40moves + 30min + 30sec/move"]
[WhiteElo "2580"]
[BlackElo "2405"]

1. c4 {[%clk 01:30:59]} {[%emt 00:00:01]} g6 {[%clk 01:30:55]} {[%emt
00:00:05]} 2. e4 {[%clk 01:31:22]} {[%emt 00:00:08]} e5 {[%clk 01:31:21]}
{[%emt 00:00:03]} 3. Nc3 {[%clk 01:31:40]} {[%emt 00:00:12]} Bg7 {[%clk
01:30:59]} {[%emt 00:00:50]} 4. Nge2 {[%clk 01:31:51]} {[%emt 00:00:20]} Nf6
{[%clk 01:30:09]} {[%emt 00:01:21]} 5. g3 {[%clk 01:31:38]} {[%emt 00:00:44]}
O-O {[%clk 01:29:30]} {[%emt 00:01:08]} 6. Bg2 {[%clk 01:31:57]} {[%emt
00:00:11]} c5 {[%clk 01:29:15]} {[%emt 00:00:45]} 7. O-O {[%clk 01:31:05]}
{[%emt 00:01:22]} d6 {[%clk 01:29:33]} {[%emt 00:00:12]} 8. a3 {[%clk
01:29:44]} {[%emt 00:01:51]} Nc6 {[%clk 01:27:53]} {[%emt 00:02:09]} 9. Rb1
{[%clk 01:29:31]} {[%emt 00:00:44]} a6 {[%clk 01:22:51]} {[%emt 00:05:32]} 10.
b4 {[%clk 01:26:08]} {[%emt 00:03:54]} cxb4 {[%clk 01:23:00]} {[%emt 00:00:22]}
11. axb4 {[%clk 01:26:32]} {[%emt 00:00:05]} b5 {[%clk 01:23:25]} {[%emt
00:00:05]} 12. cxb5 {[%clk 01:15:11]} {[%emt 00:11:52]} axb5 {[%clk 01:23:13]}
{[%emt 00:00:42]} 13. d3 {[%clk 01:15:23]} {[%emt 00:00:17]} Rb8 {[%clk
01:22:35]} {[%emt 00:01:07]} 14. h3 {[%clk 01:06:06]} {[%emt 00:09:47]} h6
{[%clk 01:01:52]} {[%emt 00:21:14]} 15. Be3 {[%clk 01:03:05]} {[%emt 00:03:35]}
Bd7 {[%clk 00:53:51]} {[%emt 00:08:28]} 16. d4 {[%clk 00:52:03]} {[%emt
00:11:31]} exd4 {[%clk 00:52:14]} {[%emt 00:02:07]} 17. Nxd4 {[%clk 00:52:28]}
{[%emt 00:00:06]} Ne5 {[%clk 00:52:38]} {[%emt 00:00:05]} 18. f4 {[%clk
00:51:23]} {[%emt 00:01:35]} Nc4 {[%clk 00:51:08]} {[%emt 00:01:59]} 19. Bf2
{[%clk 00:51:39]} {[%emt 00:00:15]} Re8 {[%clk 00:43:46]} {[%emt 00:07:52]} 20.
Qd3 {[%clk 00:50:30]} {[%emt 00:01:39]} Qc8 {[%clk 00:38:50]} {[%emt 00:05:26]}
21. Rfc1 {[%clk 00:48:11]} {[%emt 00:02:48]} Bxh3 {[%clk 00:32:20]} {[%emt
00:07:00]} 22. Ncxb5 {[%clk 00:41:35]} {[%emt 00:07:10]} Bxg2 {[%clk 00:32:08]}
{[%emt 00:00:38]} 23. Kxg2 {[%clk 00:41:53]} {[%emt 00:00:13]} Nxe4 {[%clk
00:31:52]} {[%emt 00:00:48]} 24. Rxc4 {[%clk 00:32:44]} {[%emt 00:09:37]} Qg4
{[%clk 00:28:41]} {[%emt 00:09:37]} 25. Rc2 {[%clk 00:30:24]} h5 {[%clk
00:23:23]} {[%emt 00:02:40]} 26. Nc7 {[%clk 00:25:27]} {[%emt 00:05:28]} Re7
{[%clk 00:22:43]} {[%emt 00:01:10]} 27. Nc6 {[%clk 00:23:08]} {[%emt 00:02:55]}
Rxc7 {[%clk 00:22:13]} {[%emt 00:01:10]} 28. Qxe4 {[%clk 00:21:27]} {[%emt
00:01:55]} Rbc8 {[%clk 00:20:58]} {[%emt 00:01:44]} 29. Ne7+ {[%clk 00:18:24]}
{[%emt 00:03:34]} Rxe7 {[%clk 00:20:49]} {[%emt 00:00:38]} 30. Rxc8+ {[%clk
00:18:45]} {[%emt 00:00:10]} 1-0

[Event "Chess Festival Groningen 2023 | A"]
[Site "Groningen, Netherlands"]
[Date "2023.12.27"]
[Round "6.5"]
[White "Kobo, Ori"]
[Black "Palchuk, Andrii"]
[Result "1/2-1/2"]
[TimeControl "90min/40moves + 30min + 30sec/move"]
[WhiteElo "2541"]
[BlackElo "2328"]

1. Nf3 {[%clk 01:30:50]} {[%emt 00:00:08]} Nf6 {[%clk 01:30:48]} {[%emt
00:00:12]} 2. c4 {[%clk 01:30:58]} {[%emt 00:00:22]} e6 {[%clk 01:30:35]}
{[%emt 00:00:44]} 3. b3 {[%clk 01:31:10]} {[%emt 00:00:19]} b6 {[%clk
01:25:13]} {[%emt 00:05:51]} 4. g3 {[%clk 01:30:30]} {[%emt 00:01:10]} Bb7
{[%clk 01:25:35]} {[%emt 00:00:08]} 5. Bg2 {[%clk 01:30:51]} {[%emt 00:00:08]}
Be7 {[%clk 01:21:59]} {[%emt 00:04:06]} 6. Bb2 {[%clk 01:30:44]} {[%emt
00:00:37]} O-O {[%clk 01:20:23]} {[%emt 00:02:07]} 7. O-O {[%clk 01:30:51]}
{[%emt 00:00:22]} c5 {[%clk 01:13:04]} {[%emt 00:07:50]} 8. e3 {[%clk
01:26:06]} {[%emt 00:05:14]} d5 {[%clk 01:10:34]} {[%emt 00:03:01]} 9. Qe2
{[%clk 01:24:39]} {[%emt 00:01:54]} Nc6 {[%clk 01:09:16]} {[%emt 00:01:50]} 10.
d3 {[%clk 01:23:40]} {[%emt 00:01:29]} Qc7 {[%clk 01:07:27]} {[%emt 00:02:19]}
11. Rd1 {[%clk 01:15:59]} {[%emt 00:08:11]} Rad8 {[%clk 01:05:05]} {[%emt
00:02:51]} 12. Nc3 {[%clk 01:04:20]} {[%emt 00:12:10]} Qb8 {[%clk 01:01:55]}
{[%emt 00:03:40]} 13. cxd5 {[%clk 00:49:53]} {[%emt 00:14:57]} Nxd5 {[%clk
01:01:59]} {[%emt 00:00:26]} 14. Nxd5 {[%clk 00:47:48]} {[%emt 00:02:36]} Rxd5
{[%clk 01:02:14]} {[%emt 00:00:15]} 15. h4 {[%clk 00:33:02]} {[%emt 00:15:15]}
Rd7 {[%clk 00:56:13]} {[%emt 00:06:31]} 16. h5 {[%clk 00:19:08]} {[%emt
00:14:27]} h6 {[%clk 00:42:28]} {[%emt 00:14:12]} 17. Nh2 {[%emt 00:14:12]}
Rfd8 {[%clk 00:17:21]} {[%emt 00:11:36]} 18. Ng4 {[%clk 00:17:18]} {[%emt
00:02:39]} Qa8 {[%clk 00:14:50]} {[%emt 00:03:02]} 19. f4 {[%clk 00:14:35]}
{[%emt 00:03:12]} Nb4 {[%clk 00:11:48]} {[%emt 00:03:33]} 20. Bxb7 {[%clk
00:09:09]} {[%emt 00:05:56]} Qxb7 {[%clk 00:12:03]} {[%emt 00:00:15]} 21. Ne5
{[%clk 00:09:00]} {[%emt 00:00:38]} Rd5 {[%clk 00:11:17]} {[%emt 00:01:16]} 22.
a3 {[%clk 00:05:43]} {[%emt 00:03:47]} Nc6 {[%clk 00:11:29]} {[%emt 00:00:19]}
23. Ng4 {[%clk 00:05:25]} {[%emt 00:00:48]} Qd7 {[%clk 00:07:45]} {[%emt
00:04:15]} 24. Nf2 {[%clk 00:05:30]} {[%emt 00:00:24]} Bf8 {[%clk 00:06:17]}
{[%emt 00:01:58]} 25. Bc3 {[%clk 00:04:57]} {[%emt 00:01:03]} b5 {[%clk
00:05:22]} {[%emt 00:01:25]} 26. Rac1 {[%clk 00:04:20]} {[%emt 00:01:06]} Qb7
{[%clk 00:05:05]} {[%emt 00:00:48]} 27. g4 {[%clk 00:01:58]} {[%emt 00:02:52]}
a5 {[%clk 00:04:31]} {[%emt 00:01:05]} 28. Ba1 {[%clk 00:01:43]} {[%emt
00:00:45]} a4 {[%clk 00:03:07]} {[%emt 00:01:54]} 29. bxa4 {[%clk 00:02:03]}
{[%emt 00:00:10]} bxa4 {[%clk 00:03:33]} {[%emt 00:00:04]} 30. Rb1 {[%clk
00:01:45]} {[%emt 00:00:48]} Qa6 {[%clk 00:03:09]} {[%emt 00:00:54]} 31. Qc2
{[%clk 00:00:53]} {[%emt 00:01:22]} c4 {[%clk 00:02:29]} {[%emt 00:01:11]} 32.
Rdc1 {[%clk 00:00:40]} {[%emt 00:00:42]} Na5 {[%clk 00:00:57]} {[%emt
00:02:03]} 33. dxc4 {[%clk 00:00:39]} {[%emt 00:00:30]} Rd2 {[%clk 00:01:08]}
{[%emt 00:00:19]} 34. Qxa4 {[%clk 00:00:48]} {[%emt 00:00:20]} Qa8 {[%clk
00:01:17]} {[%emt 00:00:21]} 35. Bc3 {[%clk 00:00:36]} {[%emt 00:00:42]} Qf3
{[%clk 00:01:30]} {[%emt 00:00:17]} 36. Bxd2 {[%clk 00:01:05]} {[%emt
00:00:01]} Rxd2 {[%clk 00:01:54]} {[%emt 00:00:06]} 37. Rf1 {[%clk 00:01:07]}
{[%emt 00:00:27]} Qg3+ {[%clk 00:02:04]} {[%emt 00:00:21]} 38. Kh1 {[%clk
00:01:36]} Qh4+ {[%clk 00:02:26]} {[%emt 00:00:08]} 39. Kg1 {[%clk 00:01:51]}
{[%emt 00:00:16]} Qg3+ {[%clk 00:02:51]} {[%emt 00:00:05]} 1/2-1/2